[Event "Krakow Championship-A 2022"]
[Site "Krakow"]
[Date "2022.06.30"]
[Round "7.10"]
[White "Kozak, Antoni"]
[Black "Marszalek, Maciej"]
[Result "1-0"]
[ECO "E71"]
[WhiteElo "2459"]
[BlackElo "2290"]
[Annotator "TA"]
[PlyCount "69"]
[EventDate "2022.06.25"]
[EventType "swiss"]
[EventCountry "POL"]
[SourceTitle "playchess.com"]
[Source "ChessBase"]
[SourceQuality "1"]
[TimeControl "40/5400+30:1800+30"]

{[%evp 13,69,32,45,47,43,50,50,50,45,20,25,28,49,46,87,36,30,29,144,33,91,85,77,72,81,76,129,133,139,141,180,179,177,171,183,116,123,120,111,111,111,111,137,127,177,132,153,121,476,471,460,443,428,420,439,426,422,350]} 1. d4 {[%emt 0:00:01]} Nf6 {[%emt 0:00:12]} 2. c4 {[%emt 0:00:05]} g6 {[%emt 0:00:04]} 3. Nc3 {[%emt 0:00:03]} Bg7 {[%emt 0:00:04]} 4. e4 {[%emt 0:00:03]} d6 {[%emt 0:00:05]} 5. h3 {[%emt 0:00:10]} O-O {[%emt 0:00:13]} 6. Be3 {[%emt 0:00:02]} e5 {[%emt 0:01:00]} 7. d5 {[%emt 0:00:11]} a5 {[%emt 0:00:34]} 8. g4 {E71: King's Indian: 4 e4 d6 5 h3.} Na6 {[%emt 0:02:37]} 9. Qd2 {[%emt 0:05:03]} Nc5 {[%emt 0:04:01]} 10. f3 {[%emt 0:11:23] White is slightly better.} c6 {[%emt 0:08:13]} 11. h4 {[%cal Bh3h4,Bh4h5][%mdl 32]} cxd5 {[%emt 0:05:46]} 12. cxd5 {[%emt 0:00:34]} a4 {[%emt 0:02:18]} 13. h5 {[%emt 0:03:55]} Qa5 {[%emt 0:04:20]} 14. Nge2 {[%emt 0:26:33]} (14. h6 $16 Bh8 15. Nh3) 14... b5 $14 {[%emt 0:06:31]} 15. Ng3 {[%emt 0:01:15] [#]} b4 $146 {[%emt 0:22:45]} (15... Ba6 $11 {keeps the balance.}) ({Predecessor:} 15... Bxg4 16. fxg4 b4 17. Bxc5 bxc3 18. Qxc3 Qxc3+ 19. bxc3 dxc5 20. h6 Bh8 21. g5 Ne8 {1-0 (32) Rost,D (2467)-Kurylo,R (2344) ICCF email 2018}) 16. Nd1 {[%emt 0:00:42]} (16. Nb5 $16) 16... b3 {[%emt 0:08:13]} (16... Bxg4 $1 $14 17. Bxc5 (17. fxg4 Nfxe4 18. Nxe4 Nxe4 $14) 17... Bxf3 18. Bxb4 Qb6) 17. a3 {[%emt 0:07:38]} Qxd2+ {[%emt 0:00:47]} 18. Kxd2 {[%emt 0:00:10]} Nfd7 {[%emt 0:01:15]} 19. Nc3 {[%emt 0:02:44]} Ba6 {[%emt 0:02:20]} (19... Bf6 $142) 20. Nb5 $16 {[%emt 0:02:01]} Nb7 {[%emt 0:03:35]} 21. Rc1 {[%emt 0:14:45]} Bf6 {[%emt 0:06:33]} 22. Rc7 {[%emt 0:03:26]} Nb8 {[%emt 0:04:13]} 23. Na7 {[%emt 0:05:23]} Nc5 {[%emt 0:00:41]} 24. Nc6 {[%emt 0:02:07]} (24. Bxc5 $18 dxc5 25. Bxa6 Bg5+ 26. Kd3 Nxa6 27. Rb7) 24... Bxf1 {[%emt 0:03:58]} 25. Rxf1 {[%emt 0:00:19]} Nba6 {[%emt 0:00:38] [#]} 26. Ra7 {[%emt 0:00:17] White is much more active.} Rxa7 {[%emt 0:00:55]} 27. Nxa7 {[%emt 0:00:04]} Bh4 {[%emt 0:00:11]} 28. Rg1 {[%emt 0:00:09]} Nd7 {[%emt 0:00:56]} (28... Nb7 $16 {might work better.}) 29. Nc6 {[%emt 0:00:56]} Nac5 {[%emt 0:00:30]} 30. Bh6 {[%emt 0:00:37][%cal Og3f5] Strongly threatening Nf5!} Ra8 $2 {[%emt 0:00:49][%mdl 8192] [#] This move loses the game for Black.} (30... Bxg3 $16 31. Rxg3 (31. Ne7+ Kh8 $16) 31... Re8) 31. Nf5 $1 $18 {[%emt 0:01:44][%mdl 512]} Bd8 {[%emt 0:01:36]} (31... gxf5 $2 32. gxf5+ Kh8 33. Bg7+ Kg8 34. Bxe5+ Kf8 35. Bxd6+ Ke8 36. Rg8+ Nf8 37. Bxc5) (31... Bf6 32. g5) 32. Nxd6 {[%emt 0:01:11]} f6 {[%emt 0:00:40]} 33. Be3 {[%emt 0:00:42]} Bc7 {[%emt 0:01:40]} 34. Nb5 {[%emt 0:02:02]} Bb6 {[%emt 0:00:06]} 35. Ke2 {[%emt 0:01:17] Weighted Error Value: White=0.14 (very precise) /Black=0.34} 1-0

[Event "Krakow Championship-A 2022"]
[Site "Krakow"]
[Date "2022.06.30"]
[Round "7.11"]
[White "Paszewski, Mateusz"]
[Black "Seemann, Jakub"]
[Result "1/2-1/2"]
[ECO "A06"]
[WhiteElo "2286"]
[BlackElo "2363"]
[Annotator "TA"]
[PlyCount "71"]
[EventDate "2022.06.25"]
[EventType "swiss"]
[EventCountry "POL"]
[SourceTitle "playchess.com"]
[Source "ChessBase"]
[SourceQuality "1"]
[TimeControl "40/5400+30:1800+30"]

{[%evp 18,71,31,22,33,43,39,40,54,9,8,10,5,6,18,5,7,6,10,0,22,19,22,9,12,0,4,6,11,0,0,0,0,0,0,0,0,0,0,0,0,0,0,0,0,0,0,0,0,0,0,0,0,0,0,0]} 1. Nf3 {[%emt 0:00:11]} d5 {[%emt 0:00:07]} 2. e3 {[%emt 0:00:13]} g6 {[%emt 0:01:31]} 3. c4 {[%emt 0:00:36]} c6 {[%emt 0:00:07]} 4. Nc3 {[%emt 0:01:12]} Bg7 {[%emt 0:01:31]} 5. d4 {[%emt 0:00:38]} Nf6 {[%emt 0:00:20]} 6. Be2 {[%emt 0:00:04]} O-O {[%emt 0:00:12]} 7. O-O {[%emt 0:00:08][%cal Bh1f1,Bf1c1,Bc1c5][%mdl 32]} Nbd7 {[%emt 0:04:01]} 8. cxd5 {[%emt 0:11:19]} Nxd5 {[%emt 0:01:01]} 9. Nxd5 {[%emt 0:04:48]} cxd5 {[%emt 0:00:02]} 10. Qb3 {[%emt 0:00:08]} Nb8 {[%emt 0:06:53] D94: Grünfeld: 4 Nf3 Bg7 5 e3.} 11. Bd2 {[%emt 0:02:42]} Nc6 {[%emt 0:00:05]} 12. Rfc1 {[%emt 0:00:09]} Qd6 {[%emt 0:08:21] [#] White is slightly better.} 13. Qb5 $146 {[%emt 0:11:55]} ({Predecessor:} 13. h3 Rd8 14. Rd1 b6 15. Rac1 Bb7 16. Be1 Rac8 17. Qa4 Rc7 18. Rc2 Rdc8 19. Rdc1 {½-½ (35) Jasny,S (2268)-Hrivnak,D (2238) Moravia 2002}) 13... Rd8 {[%emt 0:05:37] The position is equal.} 14. Qc5 {[%emt 0:05:34]} Qxc5 {[%emt 0:00:24]} 15. Rxc5 {[%emt 0:00:03]} e6 {[%emt 0:00:11]} 16. a3 {[%emt 0:03:59]} Bf8 {[%emt 0:01:00]} 17. Rc2 {[%emt 0:01:58]} Bd7 {[%emt 0:01:33]} 18. Rac1 {[%emt 0:17:39]} a6 {[%emt 0:00:18]} 19. Ne1 {[%emt 0:09:25]} Na7 {[%emt 0:14:54]} 20. Ba5 {[%emt 0:02:31]} Rdb8 {[%emt 0:03:36]} 21. Bc7 {[%emt 0:04:18]} Re8 {[%emt 0:00:46]} 22. Bb6 {[%emt 0:00:44][%cal Bc7b6,Bb6c5,Bc5b4,Bb4d2][%mdl 32]} Nc8 {[%emt 0:02:24]} 23. Bc5 {[%emt 0:02:03]} Bg7 {[%emt 0:09:49]} 24. b3 {[%emt 0:00:50]} b6 {[%emt 0:01:06]} 25. Bb4 {[%emt 0:00:01][%cal Oe2a6]} a5 {[%emt 0:00:09]} 26. Bd2 {[%emt 0:00:03]} a4 {[%emt 0:03:44]} 27. bxa4 {[%emt 0:00:32]} Bxa4 {[%emt 0:00:15]} 28. Rb2 {[%emt 0:00:31]} Bf8 {[%emt 0:02:06]} 29. Bb4 {[%emt 0:01:40]} Nd6 {[%emt 0:03:27]} 30. Bxd6 {[%emt 0:01:34]} Bxd6 {[%emt 0:00:04]} 31. Rxb6 {[%emt 0:00:04]} Bxa3 {[%emt 0:00:14] This bishop pair is nice.} 32. Ra1 {[%emt 0:00:40]} Bf8 {[%emt 0:03:26]} 33. Bb5 {[%emt 0:02:04]} Bxb5 {[%emt 0:00:06]} 34. Rxa8 {[%emt 0:00:02]} Rxa8 {[%emt 0:00:06]} 35. Rxb5 {[%emt 0:00:01]} Ra1 {[%emt 0:00:04][%cal Ra1e1] [#]} 36. Kf1 {[%emt 0:00:02] Weighted Error Value: White=0.04 (flawless) /Black=0.02 (flawless)} 1/2-1/2

[Event "Krakow Championship-A 2022"]
[Site "Krakow"]
[Date "2022.06.30"]
[Round "7.12"]
[White "Turski, Bartlomiej"]
[Black "Liu, Casper"]
[Result "1-0"]
[ECO "B15"]
[WhiteElo "2192"]
[BlackElo "2218"]
[Annotator "NA RC"]
[PlyCount "53"]
[EventDate "2022.06.25"]
[EventType "swiss"]
[EventCountry "POL"]
[SourceTitle "playchess.com"]
[Source "ChessBase"]
[SourceQuality "1"]
[TimeControl "40/5400+30:1800+30"]

1. e4 {[%emt 0:00:03]} c6 {[%emt 0:00:05]} 2. d4 {[%emt 0:00:05]} d5 {[%emt 0:00:05]} 3. Nc3 {[%emt 0:00:05]} dxe4 {[%emt 0:00:18]} 4. Nxe4 {[%emt 0:00:04]} Nf6 {[%emt 0:00:07]} 5. Nxf6+ {[%emt 0:00:04]} exf6 {[%emt 0:00:06]} 6. c3 {[%emt 0:00:05]} Bd6 {[%emt 0:00:04]} 7. Bd3 {[%emt 0:00:09]} O-O {[%emt 0:00:09]} 8. Qc2 {[%emt 0:00:13]} Re8+ {[%emt 0:00:04]} 9. Ne2 {[%emt 0:00:09]} h5 {[%emt 0:00:02]} 10. O-O {[%emt 0:00:10]} h4 {[%emt 0:00:01]} 11. Nf4 {[%emt 0:00:40]} Bc7 {[%emt 0:06:21]} 12. Qd1 {[%emt 0:10:37]} g6 {[%emt 0:15:46]} 13. Nxg6 {[%emt 0:06:18]} fxg6 {[%emt 0:00:11]} 14. Bxg6 {[%emt 0:00:05]} Re7 {[%emt 0:05:16]} 15. f4 {[%emt 0:20:10]} Qd6 {[%emt 0:05:40]} 16. Qh5 {[%emt 0:20:08]} h3 {[%emt 0:06:11]} 17. Rf3 {[%emt 0:04:48]} Rg7 {[%emt 0:19:19]} 18. Rg3 {[%emt 0:04:28]} Qd5 {[%emt 0:01:07]} 19. Qh6 {[%emt 0:01:39]} Kf8 {[%emt 0:02:34]} 20. Bd2 {[%emt 0:01:36]} Bd7 {[%emt 0:03:32]} 21. Re1 {[%emt 0:02:05]} Bd6 {[%emt 0:01:30]} 22. Bf5 {[%emt 0:01:59]} Qf7 {[%emt 0:00:23]} 23. Qh8+ {[%emt 0:00:12]} Qg8 {[%emt 0:00:06]} 24. Qh6 {[%emt 0:03:25]} Qf7 {[%emt 0:00:48]} 25. Be6 {[%emt 0:01:31]} Bxe6 {[%emt 0:00:27]} 26. Rxe6 {[%emt 0:00:22]} Nd7 {[%emt 0:03:55]} 27. Rxd6 {[%emt 0:01:33]} 1-0

[Event "Krakow Championship-A 2022"]
[Site "Krakow"]
[Date "2022.06.30"]
[Round "7.13"]
[White "Pniaczek, Marek"]
[Black "Stevik, Patrik jun."]
[Result "1/2-1/2"]
[ECO "B06"]
[WhiteElo "2298"]
[BlackElo "2188"]
[Annotator "TA"]
[PlyCount "93"]
[EventDate "2022.06.25"]
[EventType "swiss"]
[EventCountry "POL"]
[SourceTitle "playchess.com"]
[Source "ChessBase"]
[SourceQuality "1"]
[TimeControl "40/5400+30:1800+30"]

{[%evp 10,93,39,44,52,39,44,32,31,22,60,39,62,56,85,95,182,164,159,116,154,157,142,162,149,149,166,175,160,151,285,150,152,155,187,175,166,175,173,154,170,160,172,138,135,145,175,181,183,158,173,185,183,170,168,153,222,221,248,248,247,191,197,180,215,181,192,167,169,164,171,166,165,133,134,114,113,66,66,58,72,7,10,0,0,-4]} 1. e4 {[%emt 0:00:04]} g6 {[%emt 0:02:37]} 2. d4 {[%emt 0:00:05]} Bg7 {[%emt 0:00:07]} 3. Nc3 {[%emt 0:00:05]} d6 {[%emt 0:00:07]} 4. Be3 {[%emt 0:00:12]} a6 {[%emt 0:00:09]} 5. Qd2 {[%emt 0:00:07]} b5 {[%emt 0:00:31]} 6. O-O-O {[%emt 0:00:18]} Bb7 {[%emt 0:00:29] B06: Modern Defence.} 7. f3 {[%emt 0:00:10]} Nd7 {[%emt 0:00:13]} 8. h4 {[%emt 0:00:07]} h5 {[%emt 0:01:23] White is slightly better.} 9. Nh3 {[%emt 0:00:07]} Rc8 {[%emt 0:01:22]} 10. Ng5 {[%emt 0:01:04]} c5 {[%emt 0:01:28]} 11. e5 {[%emt 0:00:03] White is more active.} dxe5 {[%emt 0:06:09]} 12. dxe5 {[%emt 0:13:34] [#]} Nxe5 $146 {[%emt 0:00:31]} (12... Bxe5 $16 13. Nxf7 Kxf7 14. Qxd7 Qxd7 15. Rxd7 Bc6) ({Predecessor:} 12... Bxe5 13. Nxf7 Kxf7 14. Qxd7 Qc7 15. a4 Bd4 16. Rxd4 cxd4 17. Qxc7 Rxc7 18. Bxd4 Nf6 19. axb5 axb5 20. Nxb5 {0-1 (39) Ojas,K (2206)-Chatalbashev,B (2517) La Roda 2021}) 13. Qxd8+ $18 {[%emt 0:02:14]} Rxd8 {[%emt 0:01:04]} 14. Rxd8+ {[%emt 0:00:35]} (14. Bxc5 Rxd1+ 15. Nxd1 Nd7 $11) 14... Kxd8 {[%emt 0:00:01]} 15. f4 {[%emt 0:09:47][%mdl 64] Deflection} (15. Bxc5 $6 Nh6 $14) 15... Ng4 {[%emt 0:00:23]} 16. Nxf7+ {[%emt 0:02:10][%cal Bg5f7,Bf7h8,Bh8g6][%mdl 32]} Ke8 {[%emt 0:03:21]} 17. Nxh8 {[%emt 0:00:08][%cal Oe3c5]} Nxe3 {[%emt 0:00:38]} 18. Nxg6 {[%emt 0:00:05]} Nf6 {[%emt 0:10:56]} 19. Bd3 {[%emt 0:13:19]} b4 {[%emt 0:31:47]} (19... Nxg2 $16 20. b3 Bh6) 20. Nd1 {[%emt 0:17:44]} ({Don't do} 20. Re1 $6 bxc3 21. Rxe3 cxb2+ 22. Kb1 (22. Kxb2 Nd5+ 23. Re5 Nxf4 $11) 22... Nd5 $18) ({Better is} 20. Na4 $18) 20... Nxg2 $16 {[%emt 0:00:36]} 21. Rg1 {[%emt 0:00:58]} Bh6 {[%emt 0:01:09] [#]} 22. Bxa6 $1 {[%emt 0:00:48][%mdl 512]} Nxf4 {[%emt 0:01:00]} 23. Bb5+ {[%emt 0:00:12]} ({Reject} 23. Bxb7 $6 Ne2+ 24. Kb1 Nxg1 $11) 23... Kd8 {[%emt 0:04:58] ...Ne2+ is the strong threat.} 24. Nxf4 {[%emt 0:00:24]} Bxf4+ {[%emt 0:00:02]} 25. Kb1 {[%emt 0:00:07]} Ne4 {[%emt 0:02:24]} 26. a4 {[%emt 0:03:04]} bxa3 {[%emt 0:02:08]} 27. bxa3 {[%emt 0:00:01]} Nd2+ {[%emt 0:02:16]} 28. Kb2 {[%emt 0:00:24]} Nf3 {[%emt 0:00:37]} 29. Rg8+ {[%emt 0:01:43]} Kc7 {[%emt 0:00:06]} 30. Be8 {[%emt 0:03:01]} Nxh4 {[%emt 0:06:08]} 31. Bxh5 {[%emt 0:00:06]} Nf5 {[%emt 0:00:41]} 32. Nf2 {[%emt 0:05:17]} c4 {[%emt 0:05:45]} (32... Bd5 $16 33. Rg6 Be3) 33. Rf8 $18 {[%emt 0:03:06]} Be5+ {[%emt 0:00:10]} 34. c3 {[%emt 0:01:09]} Nd6 {[%emt 0:00:46]} 35. Be2 {[%emt 0:09:24]} Bd5 {[%emt 0:00:43] [#]} 36. Nd1 $1 {[%emt 0:02:38]} Bg7 {[%emt 0:04:45]} 37. Rf4 {[%emt 0:02:27]} Be5 {[%emt 0:01:22]} 38. Rh4 {[%emt 0:01:15] And now Rh5 would win.} Bf6 {[%emt 0:01:20]} 39. Rg4 {[%emt 0:00:37]} Be6 {[%emt 0:00:29]} 40. Rg1 {[%emt 0:03:41]} Ne4 {[%emt 0:03:27]} 41. Bf3 {[%emt 0:30:24]} Nc5 {[%emt 0:30:18]} 42. Bg4 {[%emt 0:02:03] Hoping for Bxe6.} Bd5 {[%emt 0:04:35]} 43. Bf5 {[%emt 0:00:15]} (43. Be2 $16) 43... Na4+ $1 $14 {[%emt 0:01:59]} 44. Kc2 {[%emt 0:01:03]} Bf3 $1 {[%emt 0:00:00]} 45. Nb2 {[%emt 0:00:00]} ({White should play} 45. Rg8 $16) 45... Nxc3 $11 {[%emt 0:00:00]} 46. Nxc4 {[%emt 0:00:00]} Ne2 {[%emt 0:00:00]} 47. Rd1 {[%emt 0:00:00] Weighted Error Value: White=0.17 (very precise) /Black=0.12 (very precise)} 1/2-1/2

[Event "Krakow Championship-A 2022"]
[Site "Krakow"]
[Date "2022.06.30"]
[Round "7.14"]
[White "Balaji Sekar"]
[Black "Lim, Zhuo Ren"]
[Result "1-0"]
[ECO "B31"]
[WhiteElo "1189"]
[BlackElo "2290"]
[Annotator "NA RC"]
[PlyCount "87"]
[EventDate "2022.06.25"]
[EventType "swiss"]
[EventCountry "POL"]
[SourceTitle "playchess.com"]
[Source "ChessBase"]
[SourceQuality "1"]
[TimeControl "40/5400+30:1800+30"]

1. e4 {[%emt 0:00:03]} c5 {[%emt 0:05:01]} 2. Nf3 {[%emt 0:00:03]} Nc6 {[%emt 0:00:17]} 3. Bb5 {[%emt 0:00:17]} g6 {[%emt 0:00:22]} 4. O-O {[%emt 0:04:01]} Bg7 {[%emt 0:00:06]} 5. Re1 {[%emt 0:01:02]} Nf6 {[%emt 0:00:09]} 6. c3 {[%emt 0:02:43]} O-O {[%emt 0:01:02]} 7. h3 {[%emt 0:00:03]} e5 {[%emt 0:00:23]} 8. d3 {[%emt 0:06:00]} d6 {[%emt 0:00:21]} 9. a3 {[%emt 0:02:17]} a6 {[%emt 0:01:03]} 10. Ba4 {[%emt 0:01:27]} b5 {[%emt 0:00:23]} 11. Bc2 {[%emt 0:00:02]} Bb7 {[%emt 0:01:10]} 12. Be3 {[%emt 0:07:58]} Re8 {[%emt 0:04:22]} 13. a4 {[%emt 0:05:35]} b4 {[%emt 0:02:03]} 14. Nbd2 {[%emt 0:00:33]} Na5 {[%emt 0:00:26]} 15. Nb3 {[%emt 0:07:08]} c4 {[%emt 0:07:39]} 16. Nxa5 {[%emt 0:00:18]} Qxa5 {[%emt 0:00:03]} 17. cxb4 {[%emt 0:00:33]} Qxb4 {[%emt 0:00:05]} 18. Bd2 {[%emt 0:03:55]} Qc5 {[%emt 0:00:42]} 19. dxc4 {[%emt 0:00:40]} a5 {[%emt 0:04:25]} 20. b3 {[%emt 0:01:00]} Qc7 {[%emt 0:01:02]} 21. Bc1 {[%emt 0:05:18]} Rac8 {[%emt 0:05:13]} 22. Ra2 {[%emt 0:03:52]} Nd7 {[%emt 0:01:01]} 23. Nd2 {[%emt 0:02:14]} Nc5 {[%emt 0:02:47]} 24. Nb1 {[%emt 0:01:09]} f5 {[%emt 0:04:48]} 25. exf5 {[%emt 0:11:47]} e4 {[%emt 0:00:37]} 26. fxg6 {[%emt 0:01:29]} Re6 {[%emt 0:01:30]} 27. gxh7+ {[%emt 0:02:13]} Kh8 {[%emt 0:00:58]} 28. Be3 {[%emt 0:00:24]} Nd3 {[%emt 0:02:40]} 29. Bxd3 {[%emt 0:05:42]} exd3 {[%emt 0:00:02]} 30. Qxd3 {[%emt 0:02:31]} Be4 {[%emt 0:00:43]} 31. Qd1 {[%emt 0:03:48]} Rce8 {[%emt 0:06:03]} 32. Nd2 {[%emt 0:01:04]} Ba8 {[%emt 0:00:37]} 33. Nf3 {[%emt 0:05:07]} Qb7 {[%emt 0:01:11]} 34. Rd2 {[%emt 0:01:16]} Qb4 {[%emt 0:03:11]} 35. Ng5 {[%emt 0:01:03]} Rg6 {[%emt 0:02:24]} 36. Nf7+ {[%emt 0:03:14]} Kxh7 {[%emt 0:00:04]} 37. Qh5+ {[%emt 0:00:11]} Bh6 {[%emt 0:00:35]} 38. Nxh6 {[%emt 0:00:02]} Rxg2+ {[%emt 0:14:56]} 39. Kf1 {[%emt 0:00:01]} Re5 {[%emt 0:00:06]} 40. Nf5+ {[%emt 0:03:07]} Kg8 {[%emt 0:00:01]} 41. Nh6+ {[%emt 0:31:52]} Kh7 {[%emt 0:30:10]} 42. Qh4 {[%emt 0:01:27]} Re6 {[%emt 0:13:05]} 43. Ng4+ {[%emt 0:01:16]} Kg8 {[%emt 0:00:07]} 44. Qd8+ {[%emt 0:00:10]} 1-0

[Event "Krakow Championship-A 2022"]
[Site "Krakow"]
[Date "2022.06.30"]
[Round "7.15"]
[White "Mikrut, Dariusz"]
[Black "Goroshkov, Maksym"]
[Result "1-0"]
[ECO "E81"]
[WhiteElo "2361"]
[BlackElo "2226"]
[Annotator "TA"]
[PlyCount "91"]
[EventDate "2022.06.25"]
[EventType "swiss"]
[EventCountry "POL"]
[SourceTitle "playchess.com"]
[Source "ChessBase"]
[SourceQuality "1"]
[TimeControl "40/5400+30:1800+30"]

{[%evp 17,91,29,87,77,85,48,100,101,161,160,118,95,112,116,129,41,43,48,46,25,91,91,90,87,86,91,89,90,87,81,83,87,379,356,365,335,320,335,408,406,408,407,572,565,560,550,544,529,416,305,368,376,533,503,527,520,500,426,663,646,1631,1599,1620,1467,1600,1493,1474,805,661,661,825,558,751,734,948,718]} 1. d4 {[%emt 0:00:36]} Nf6 {[%emt 0:00:27]} 2. c4 {[%emt 0:00:06]} g6 {[%emt 0:02:25]} 3. Nc3 {[%emt 0:02:53]} Bg7 {[%emt 0:00:52]} 4. e4 {[%emt 0:00:07]} d6 {[%emt 0:00:04]} 5. f3 {[%emt 0:00:19]} O-O {[%emt 0:00:38]} 6. Be3 {[%emt 0:00:06]} c6 {[%emt 0:08:54]} 7. Qd2 {[%emt 0:00:56]} e5 {[%emt 0:00:40]} 8. Nge2 {[%emt 0:00:09][%cal Bg1e2,Be2d4,Bd4b3][%mdl 32]} exd4 {[%emt 0:00:25] 8...Qc7 is setting a new trend.} 9. Nxd4 {[%emt 0:00:17]} Re8 {[%emt 0:04:41]} (9... d5 $1 $11) 10. O-O-O $16 {[%emt 0:00:09] E86: King's Indian: Sämisch: 6...e5 7 Nge2 c6.} d5 {[%emt 0:01:25][%cal Rd5e4]} 11. Nb3 {[%emt 0:04:17][%cal Rc4d5] [#]} b5 $146 {[%emt 0:31:37]} ({Black should play} 11... a5 $14) ({Predecessor:} 11... a5 12. Na4 Nbd7 13. cxd5 cxd5 14. Bb5 dxe4 15. Kb1 Qe7 16. Rhe1 Qe5 17. Bxd7 Bxd7 {0-1 (34) Stanojevic,I (2147)-Ristic,N (2306) Nis 2017}) 12. cxb5 {[%emt 0:16:21] White is better.} Be6 {[%emt 0:02:45]} (12... a6 $16) 13. Kb1 $18 {[%emt 0:16:39]} a6 {[%emt 0:01:55]} 14. exd5 {[%emt 0:13:03]} Nxd5 {[%emt 0:02:27]} 15. Nxd5 {[%emt 0:00:58]} Bf5+ {[%emt 0:00:40]} 16. Ka1 {[%emt 0:00:51]} (16. Bd3 $16 Bxd3+ 17. Qxd3 cxd5 18. b6) 16... Qxd5 $14 {[%emt 0:00:50]} 17. Qxd5 {[%emt 0:15:50]} (17. b6 $2 {[#]} Rxe3 $1 18. g4 Qxd2 19. Nxd2 Bc2 $19) 17... cxd5 {[%emt 0:00:01]} 18. Bf2 {[%emt 0:06:15] Threatens to win with b6.} (18. Bd2 $5 {[%cal Rb5b6]}) 18... Bc2 {[%emt 0:03:55]} (18... axb5 $1 $11 {keeps the balance.} 19. Bxb5 Na6 20. Bxe8 (20. Rxd5 $2 Nb4 $19) 20... Nb4) 19. Rc1 $16 {[%emt 0:03:15]} (19. Rxd5 $6 axb5 20. Nd4 (20. Rxb5 Nc6 $15) 20... Bxd4 21. Rxd4 Nc6 $15) 19... Bxb3 {[%emt 0:01:32]} 20. axb3 {[%emt 0:02:18]} axb5+ {[%emt 0:00:26]} 21. Kb1 {[%emt 0:00:01]} Na6 {[%emt 0:02:29]} 22. Bxb5 {[%emt 0:03:40]} Reb8 {[%emt 0:00:04]} 23. Ba4 {[%emt 0:01:43] White is more active.} Nb4 {[%emt 0:08:01]} 24. Rhd1 {[%emt 0:00:14] Prevents Nd3.} Rxa4 $4 {[%emt 0:01:39][%mdl 8192] Loses the game.} 25. bxa4 $18 {[%emt 0:00:23]} Nd3 {[%emt 0:00:01] [#]} 26. Rc8+ $3 {[%mdl 512]} Rxc8 27. Rxd3 {[%emt 0:04:02][%mdl 4096] Endgame KRB-KRB} d4 {[%emt 0:00:48]} 28. b3 {[%emt 0:01:46]} ({Weaker is} 28. Bxd4 Rd8 $16) 28... f5 {[%emt 0:00:18]} 29. Kb2 {[%emt 0:01:36]} Rd8 {[%emt 0:00:04]} (29... Kf7 {might work better.} 30. Bxd4 Rd8) 30. b4 {[%emt 0:00:15]} Kf7 {[%emt 0:00:01]} 31. Kb3 {[%emt 0:00:24]} Ke6 {[%emt 0:00:01]} 32. b5 {[%emt 0:00:21]} Kd5 {[%emt 0:00:04]} 33. Bg3 {[%emt 0:00:35]} Re8 {[%emt 0:02:58]} 34. a5 {[%emt 0:00:44]} Bf8 {[%emt 0:02:17]} (34... h5 $142 35. a6 Kc5) 35. b6 {[%emt 0:02:39] White is clearly winning.} Bc5 {[%emt 0:00:04]} 36. b7 {[%emt 0:01:05]} Ba7 {[%emt 0:00:01] Prevents b8Q.} 37. Ka4 {[%emt 0:00:16] Kb5 is the strong threat.} Kc4 {[%emt 0:00:57]} (37... Kc6 $142 38. Rb3 d3) 38. Rd1 {[%emt 0:00:32] Hoping for Rc1+.} Re2 {[%emt 0:01:15][%cal Re2a2]} 39. Rc1+ {[%emt 0:00:10]} Kd3 {[%emt 0:00:00]} 40. Kb5 {[%emt 0:00:48]} Re6 {[%emt 0:00:35]} 41. Rd1+ {[%emt 0:33:18]} Kc3 {[%emt 0:30:28]} 42. b8=Q {[%emt 0:00:35]} Bxb8 {[%emt 0:00:04]} 43. Bxb8 {[%emt 0:00:03]} Re2 {[%emt 0:00:14]} 44. Kc5 {[%emt 0:00:00]} d3 {[%emt 0:00:00]} 45. Bf4 {[%emt 0:00:00]} Rxg2 {[%emt 0:00:00]} 46. Rc1+ {[%emt 0:00:00] Weighted Error Value: White=0.28 (precise) /Black=0.55} 1-0